[Event "24th Bosnjaci Open 2019"]
[Site "Bosnjaci"]
[Date "2019.01.08"]
[Round "7.18"]
[White "Pejic, Ivo"]
[Black "Lesic, Krunoslav"]
[Result "0-1"]
[ECO "C01"]
[WhiteElo "1845"]
[BlackElo "2067"]
[Annotator "NA"]
[PlyCount "58"]
[EventDate "2019.01.03"]
[EventType "swiss"]
[EventCountry "CRO"]
[TimeControl "5400+30"]

1. e4 {[%emt 0:00:30]} e6 {[%emt 0:00:30]} 2. d4 {[%emt 0:01:30]} d5 {[%emt 0:00:00]} 3. exd5 {[%emt 0:00:30]} exd5 {[%emt 0:00:00]} 4. Nf3 {[%emt 0:00:30]} Bf5 {[%emt 0:00:30]} 5. Bd3 {[%emt 0:02:30]} Bxd3 {[%emt 0:01:30]} 6. Qxd3 {[%emt 0:00:30]} c6 {[%emt 0:01:30]} 7. O-O {[%emt 0:01:30]} Be7 {[%emt 0:00:30]} 8. Re1 {[%emt 0:02:30]} Na6 {[%emt 0:00:30]} 9. c3 {[%emt 0:00:30]} Nc7 {[%emt 0:00:00]} 10. Bf4 {[%emt 0:05:30]} Ne6 {[%emt 0:00:00]} 11. Be5 {[%emt 0:02:30]} Nf6 {[%emt 0:00:30]} 12. h3 {[%emt 0:00:30]} O-O {[%emt 0:00:00]} 13. Nbd2 {[%emt 0:00:30]} b5 {[%emt 0:02:00]} 14. b4 {[%emt 0:03:30]} a5 {[%emt 0:00:30]} 15. a3 {[%emt 0:00:30]} Qb6 {[%emt 0:00:00]} 16. Nh2 {[%emt 0:01:30]} axb4 {[%emt 0:00:00]} 17. axb4 {[%emt 0:00:30]} Ra4 {[%emt 0:00:30]} 18. Nb3 {[%emt 0:01:30]} Rfa8 {[%emt 0:00:30]} 19. Na5 {[%emt 0:00:30]} Ne4 {[%emt 0:05:30]} 20. Rxa4 {[%emt 0:04:30]} bxa4 {[%emt 0:00:00]} 21. f3 {[%emt 0:00:30]} Nxc3 {[%emt 0:04:00]} 22. Bc7 {[%emt 0:07:30]} Qb5 {[%emt 0:06:30]} 23. Qf5 {[%emt 0:05:30]} Ne2+ {[%emt 0:06:30]} 24. Kf2 {[%emt 0:00:30]} Bh4+ {[%emt 0:00:30]} 25. g3 {[%emt 0:00:30]} Bxg3+ {[%emt 0:00:30]} 26. Bxg3 {[%emt 0:00:00]} N2xd4 {[%emt 0:01:30]} 27. Qg4 {[%emt 0:01:00]} Qxb4 {[%emt 0:00:30]} 28. Be5 {[%emt 0:01:30]} Qxa5 {[%emt 0:01:30]} 29. Bxg7 {[%emt 0:00:30]} Qd2+ {[%emt 0:00:30]} 0-1

[Event "24th Bosnjaci Open 2019"]
[Site "Bosnjaci"]
[Date "2019.01.08"]
[Round "7.19"]
[White "Slobodjanac, Sinisa"]
[Black "Duda, Daniel"]
[Result "0-1"]
[ECO "A00"]
[WhiteElo "1797"]
[BlackElo "1991"]
[Annotator "NA"]
[PlyCount "78"]
[EventDate "2019.01.03"]
[EventType "swiss"]
[EventCountry "CRO"]
[TimeControl "5400+30"]

1. b4 {[%emt 0:00:30]} e6 {[%emt 0:03:30]} 2. Bb2 {[%emt 0:00:00]} Nf6 {[%emt 0:00:00]} 3. b5 {[%emt 0:00:00]} d5 {[%emt 0:03:00]} 4. e3 {[%emt 0:00:30]} Be7 {[%emt 0:02:30]} 5. Nf3 {[%emt 0:00:30]} O-O {[%emt 0:01:30]} 6. c4 {[%emt 0:00:00]} c6 {[%emt 0:03:30]} 7. Nc3 {[%emt 0:02:00]} dxc4 {[%emt 0:02:30]} 8. Bxc4 {[%emt 0:00:00]} cxb5 {[%emt 0:00:30]} 9. Bxb5 {[%emt 0:03:00]} a6 {[%emt 0:00:30]} 10. Be2 {[%emt 0:00:30]} b5 {[%emt 0:00:30]} 11. a3 {[%emt 0:00:30]} Bb7 {[%emt 0:01:30]} 12. O-O {[%emt 0:00:00]} Nbd7 {[%emt 0:01:30]} 13. d4 {[%emt 0:12:00]} Rc8 {[%emt 0:02:30]} 14. Nd2 {[%emt 0:05:30]} Qa5 15. Nb3 {[%emt 0:00:30]} Qb6 {[%emt 0:08:00]} 16. Bf3 {[%emt 0:24:30]} Bxf3 {[%emt 0:00:30]} 17. Qxf3 {[%emt 0:00:30]} b4 {[%emt 0:01:30]} 18. Na4 {[%emt 0:02:30]} Qb5 {[%emt 0:00:30]} 19. axb4 {[%emt 0:00:30]} Bxb4 {[%emt 0:04:30]} 20. Nbc5 {[%emt 0:00:00]} Nxc5 {[%emt 0:07:30]} 21. dxc5 {[%emt 0:00:00]} Nd7 {[%emt 0:00:30]} 22. Qg4 {[%emt 0:09:30]} g6 {[%emt 0:00:30]} 23. c6 {[%emt 0:12:30]} Nc5 {[%emt 0:05:30]} 24. Bf6 {[%emt 0:12:19]} Nxa4 {[%emt 0:14:30]} 25. Rxa4 {[%emt 0:01:05]} Qxa4 {[%emt 0:02:30]} 26. Qf4 {[%emt 0:00:07]} Rfe8 {[%emt 0:00:30]} 27. Be5 {[%emt 0:01:34]} f5 {[%emt 0:02:30]} 28. Qg5 {[%emt 0:00:28]} Be7 {[%emt 0:00:30]} 29. Qh6 {[%emt 0:00:28]} Bf8 {[%emt 0:00:30]} 30. Qg5 {[%emt 0:01:17]} Bg7 {[%emt 0:00:00]} 31. Bxg7 {[%emt 0:01:02]} Kxg7 {[%emt 0:00:00]} 32. Rb1 {[%emt 0:01:11]} Qxc6 {[%emt 0:00:00]} 33. h4 {[%emt 0:00:16]} h6 {[%emt 0:01:00]} 34. Qg3 {[%emt 0:00:05]} e5 {[%emt 0:01:30]} 35. f4 {[%emt 0:00:24]} e4 {[%emt 0:01:30]} 36. h5 {[%emt 0:00:08]} Rb8 {[%emt 0:00:00]} 37. Ra1 {[%emt 0:00:41]} Re6 {[%emt 0:00:00]} 38. Qh3 {[%emt 0:00:42]} Rb2 {[%emt 0:01:30]} 39. g4 {[%emt 0:00:37]} Qb5 {[%emt 0:01:30]} 0-1

[Event "24th Bosnjaci Open 2019"]
[Site "Bosnjaci"]
[Date "2019.01.08"]
[Round "7.20"]
[White "Pasalic, Adnan"]
[Black "Tomljenovic, Mile"]
[Result "1-0"]
[ECO "E91"]
[WhiteElo "1973"]
[BlackElo "1794"]
[Annotator "NA"]
[PlyCount "91"]
[EventDate "2019.01.03"]
[EventType "swiss"]
[EventCountry "CRO"]
[TimeControl "5400+30"]

1. d4 {[%emt 0:00:30]} Nf6 {[%emt 0:00:30]} 2. c4 {[%emt 0:00:00]} g6 {[%emt 0:00:00]} 3. Nc3 {[%emt 0:00:00]} Bg7 {[%emt 0:00:00]} 4. Nf3 {[%emt 0:00:30]} O-O {[%emt 0:00:00]} 5. e4 {[%emt 0:00:30]} d6 {[%emt 0:00:00]} 6. h3 {[%emt 0:00:30]} Nbd7 {[%emt 0:01:30]} 7. Be2 {[%emt 0:00:30]} b6 {[%emt 0:01:30]} 8. Be3 {[%emt 0:01:30]} e5 {[%emt 0:01:30]} 9. dxe5 {[%emt 0:03:30]} Nxe5 {[%emt 0:00:30]} 10. Nxe5 {[%emt 0:00:30]} dxe5 {[%emt 0:00:30]} 11. Qc2 {[%emt 0:01:30]} Bb7 {[%emt 0:01:30]} 12. O-O {[%emt 0:00:30]} Qd7 {[%emt 0:04:30]} 13. Rad1 {[%emt 0:02:30]} Qc6 {[%emt 0:02:30]} 14. f3 {[%emt 0:00:30]} Nh5 {[%emt 0:00:30]} 15. Nd5 {[%emt 0:01:30]} Rae8 {[%emt 0:00:30]} 16. Kh2 {[%emt 0:01:30]} Nf6 {[%emt 0:01:30]} 17. Qb3 {[%emt 0:01:30]} Nxd5 {[%emt 0:03:30]} 18. cxd5 {[%emt 0:00:30]} Qd6 {[%emt 0:00:30]} 19. Rc1 {[%emt 0:04:30]} f5 {[%emt 0:01:30]} 20. Bb5 {[%emt 0:08:30]} Re7 {[%emt 0:05:30]} 21. Rfd1 {[%emt 0:05:30]} Ref7 {[%emt 0:03:30]} 22. Bc6 {[%emt 0:10:30]} Bc8 {[%emt 0:00:30]} 23. Ba4 {[%emt 0:02:30]} Bb7 {[%emt 0:00:30]} 24. Bc5 {[%emt 0:01:30]} bxc5 {[%emt 0:00:00]} 25. Qxb7 {[%emt 0:00:30]} fxe4 {[%emt 0:01:00]} 26. fxe4 {[%emt 0:00:30]} Bh6 {[%emt 0:00:30]} 27. Rb1 {[%emt 0:00:30]} Bf4+ {[%emt 0:00:30]} 28. Kh1 {[%emt 0:01:30]} Qf6 {[%emt 0:03:30]} 29. Qb3 {[%emt 0:06:30]} Qg5 {[%emt 0:03:30]} 30. Rf1 {[%emt 0:13:30]} c4 {[%emt 0:00:30]} 31. Qf3 {[%emt 0:10:30]} Be3 {[%emt 0:02:30]} 32. Qe2 {[%emt 0:00:30]} Rf2 {[%emt 0:00:30]} 33. Rxf2 {[%emt 0:00:00]} Rxf2 {[%emt 0:00:30]} 34. Qg4 {[%emt 0:00:00]} Qxg4 {[%emt 0:02:30]} 35. hxg4 {[%emt 0:00:00]} Rf4 {[%emt 0:00:30]} 36. Bd7 {[%emt 0:02:00]} Rxe4 {[%emt 0:00:30]} 37. Re1 {[%emt 0:00:00]} Kf8 {[%emt 0:00:30]} 38. Bc6 {[%emt 0:00:00]} Rxg4 {[%emt 0:03:30]} 39. Rxe3 {[%emt 0:00:30]} Rg5 {[%emt 0:00:30]} 40. Bb5 {[%emt 0:00:30]} Ke7 {[%emt 0:00:30]} 41. Bxc4 {[%emt 0:00:00]} Kd6 {[%emt 0:00:00]} 42. Kg1 {[%emt 0:03:00]} Rg4 {[%emt 0:02:00]} 43. b3 {[%emt 0:00:30]} h5 {[%emt 0:00:00]} 44. Kf2 {[%emt 0:00:00]} g5 {[%emt 0:01:00]} 45. g3 {[%emt 0:01:44]} e4 {[%emt 0:01:30]} 46. Be2 {[%emt 0:00:15]} 1-0

[Event "24th Bosnjaci Open 2019"]
[Site "Bosnjaci"]
[Date "2019.01.08"]
[Round "7.21"]
[White "Radovic, Sinisa"]
[Black "Kovac, Petar"]
[Result "1/2-1/2"]
[ECO "E14"]
[WhiteElo "1955"]
[BlackElo "1747"]
[Annotator "NA"]
[PlyCount "90"]
[EventDate "2019.01.03"]
[EventType "swiss"]
[EventCountry "CRO"]
[TimeControl "5400+30"]

1. d4 {[%emt 0:00:30]} d5 {[%emt 0:00:30]} 2. c4 {[%emt 0:00:30]} e6 {[%emt 0:00:00]} 3. Nf3 {[%emt 0:00:30]} Nf6 {[%emt 0:00:00]} 4. e3 {[%emt 0:01:30]} Be7 {[%emt 0:00:30]} 5. Nc3 {[%emt 0:00:30]} O-O {[%emt 0:00:30]} 6. Bd3 {[%emt 0:00:30]} b6 {[%emt 0:01:30]} 7. O-O {[%emt 0:00:30]} Bb7 {[%emt 0:00:30]} 8. cxd5 {[%emt 0:02:30]} exd5 {[%emt 0:01:30]} 9. a3 {[%emt 0:03:30]} Nbd7 {[%emt 0:03:30]} 10. Re1 {[%emt 0:01:30]} Ne4 {[%emt 0:01:30]} 11. Nd2 {[%emt 0:02:30]} Nxd2 {[%emt 0:10:30]} 12. Bxd2 {[%emt 0:00:30]} c5 {[%emt 0:00:00]} 13. Ne2 {[%emt 0:03:30]} c4 {[%emt 0:04:00]} 14. Bc2 {[%emt 0:01:30]} b5 {[%emt 0:01:30]} 15. Ng3 {[%emt 0:00:30]} Re8 {[%emt 0:03:30]} 16. Nf5 {[%emt 0:10:30]} Bf8 {[%emt 0:00:30]} 17. f3 {[%emt 0:04:30]} g6 {[%emt 0:02:30]} 18. Ng3 {[%emt 0:00:00]} Nb6 {[%emt 0:01:30]} 19. Ba5 {[%emt 0:04:00]} Bg7 {[%emt 0:02:30]} 20. a4 {[%emt 0:00:30]} a6 {[%emt 0:01:30]} 21. Qd2 {[%emt 0:01:30]} Qf6 {[%emt 0:03:30]} 22. Bc3 {[%emt 0:09:30]} h5 {[%emt 0:05:30]} 23. a5 {[%emt 0:08:30]} Nd7 {[%emt 0:03:30]} 24. Rad1 {[%emt 0:00:30]} Bh6 {[%emt 0:03:30]} 25. Nf1 {[%emt 0:02:30]} Re7 {[%emt 0:01:30]} 26. Qf2 {[%emt 0:01:30]} Rae8 {[%emt 0:00:30]} 27. f4 {[%emt 0:01:30]} Nb8 {[%emt 0:13:30]} 28. Bb4 {[%emt 0:01:30]} Rd7 {[%emt 0:01:30]} 29. Bc5 {[%emt 0:00:30]} Bf8 {[%emt 0:01:30]} 30. Bb6 {[%emt 0:00:30]} Nc6 {[%emt 0:05:30]} 31. Ra1 {[%emt 0:00:30]} Bd6 {[%emt 0:01:30]} 32. Nd2 {[%emt 0:00:30]} Bc7 {[%emt 0:06:38]} 33. Bxc7 {[%emt 0:01:30]} Rxc7 {[%emt 0:00:22]} 34. Nf3 {[%emt 0:01:30]} Qd6 {[%emt 0:02:35]} 35. Ne5 {[%emt 0:01:30]} Nxe5 {[%emt 0:00:33]} 36. fxe5 {[%emt 0:01:30]} Qb4 {[%emt 0:00:58]} 37. Qf6 {[%emt 0:04:30]} Rc6 {[%emt 0:01:32]} 38. Qf2 {[%emt 0:00:30]} Qxb2 {[%emt 0:01:14]} 39. Rf1 {[%emt 0:01:30]} Rc7 {[%emt 0:00:37]} 40. Rfc1 {[%emt 0:04:30]} b4 {[%emt 0:02:54]} 41. Qg3 {[%emt 0:00:30]} Re6 {[%emt 0:01:06]} 42. Bf5 {[%emt 0:03:30]} Bc8 {[%emt 0:00:30]} 43. Bc2 {[%emt 0:00:30]} Bb7 {[%emt 0:00:30]} 44. Bf5 {[%emt 0:00:30]} Qc3 {[%emt 0:00:30]} 45. Bc2 {[%emt 0:00:30]} Qb2 {[%emt 0:00:30]} 1/2-1/2

[Event "24th Bosnjaci Open 2019"]
[Site "Bosnjaci"]
[Date "2019.01.08"]
[Round "7.22"]
[White "Pleh, Semir"]
[Black "Golub, Nikolina"]
[Result "1/2-1/2"]
[ECO "D30"]
[WhiteElo "1767"]
[BlackElo "1925"]
[Annotator "NA"]
[PlyCount "116"]
[EventDate "2019.01.03"]
[EventType "swiss"]
[EventCountry "CRO"]
[TimeControl "5400+30"]

1. c4 {[%emt 0:00:30]} e6 {[%emt 0:00:30]} 2. Nf3 {[%emt 0:00:30]} d5 {[%emt 0:00:00]} 3. d4 {[%emt 0:00:30]} Nf6 {[%emt 0:00:00]} 4. Qc2 {[%emt 0:00:30]} Be7 {[%emt 0:00:30]} 5. b3 {[%emt 0:00:30]} O-O {[%emt 0:00:30]} 6. g3 {[%emt 0:00:30]} c5 {[%emt 0:01:30]} 7. e3 {[%emt 0:00:30]} Nc6 {[%emt 0:00:30]} 8. Bb2 {[%emt 0:00:00]} b6 {[%emt 0:03:30]} 9. Bg2 {[%emt 0:00:00]} Bb7 {[%emt 0:02:30]} 10. O-O {[%emt 0:00:30]} Qc7 {[%emt 0:01:30]} 11. Nbd2 {[%emt 0:06:30]} Rac8 {[%emt 0:04:30]} 12. Rac1 {[%emt 0:00:00]} Ne4 {[%emt 0:06:30]} 13. a3 {[%emt 0:10:00]} Nxd2 {[%emt 0:00:30]} 14. Nxd2 {[%emt 0:00:00]} Rfd8 {[%emt 0:04:30]} 15. dxc5 {[%emt 0:02:00]} bxc5 {[%emt 0:00:30]} 16. cxd5 {[%emt 0:01:30]} exd5 {[%emt 0:00:30]} 17. Qf5 {[%emt 0:00:00]} g6 {[%emt 0:05:30]} 18. Qf3 {[%emt 0:01:00]} Ne5 {[%emt 0:02:30]} 19. Qe2 {[%emt 0:01:30]} Qd6 {[%emt 0:05:30]} 20. Bxe5 {[%emt 0:00:30]} Qxe5 {[%emt 0:00:00]} 21. Nf3 {[%emt 0:00:00]} Qe6 {[%emt 0:02:00]} 22. Qc2 {[%emt 0:01:00]} Ba6 {[%emt 0:07:30]} 23. Rfd1 {[%emt 0:00:00]} Bf6 {[%emt 0:10:30]} 24. Bf1 {[%emt 0:01:00]} Bb7 {[%emt 0:00:30]} 25. Bg2 {[%emt 0:00:30]} a5 {[%emt 0:01:30]} 26. Nd2 {[%emt 0:01:30]} Ba6 {[%emt 0:02:30]} 27. Bf1 {[%emt 0:00:00]} Bb7 {[%emt 0:00:30]} 28. Bg2 {[%emt 0:00:00]} Qb6 {[%emt 0:04:30]} 29. e4 {[%emt 0:01:30]} dxe4 {[%emt 0:01:30]} 30. Bxe4 {[%emt 0:02:30]} Ba6 {[%emt 0:01:30]} 31. a4 {[%emt 0:01:30]} Qb4 {[%emt 0:01:30]} 32. Nc4 {[%emt 0:06:30]} Rd4 {[%emt 0:02:30]} 33. Rxd4 {[%emt 0:03:30]} Bxd4 {[%emt 0:00:00]} 34. Rb1 {[%emt 0:02:30]} Re8 {[%emt 0:01:00]} 35. Bg2 {[%emt 0:03:30]} Re6 {[%emt 0:02:30]} 36. Bf1 {[%emt 0:03:30]} Bb7 {[%emt 0:03:30]} 37. Qd2 {[%emt 0:01:30]} Qxd2 {[%emt 0:00:30]} 38. Nxd2 {[%emt 0:00:00]} Rf6 {[%emt 0:00:30]} 39. Bg2 {[%emt 0:00:00]} Rxf2 {[%emt 0:00:00]} 40. Bxb7 {[%emt 0:00:30]} Rxd2+ {[%emt 0:00:00]} 41. Kh1 {[%emt 0:00:00]} Rb2 {[%emt 0:02:30]} 42. Rxb2 {[%emt 0:00:00]} Bxb2 {[%emt 0:00:00]} 43. Bd5 {[%emt 0:00:30]} Kg7 {[%emt 0:00:00]} 44. Kg2 {[%emt 0:00:00]} f5 {[%emt 0:00:30]} 45. h3 {[%emt 0:00:00]} Kf6 {[%emt 0:02:30]} 46. Kf3 {[%emt 0:00:30]} Bc1 {[%emt 0:04:21]} 47. g4 {[%emt 0:00:00]} h6 {[%emt 0:02:16]} 48. Bg8 {[%emt 0:00:00]} g5 {[%emt 0:02:48]} 49. gxf5 {[%emt 0:00:00]} Kxf5 {[%emt 0:00:05]} 50. Bh7+ {[%emt 0:00:00]} Kf6 {[%emt 0:00:26]} 51. Kg4 {[%emt 0:00:30]} Bd2 {[%emt 0:00:32]} 52. Bd3 {[%emt 0:00:00]} Ke5 {[%emt 0:00:24]} 53. Bg6 {[%emt 0:00:00]} c4 {[%emt 0:01:17]} 54. bxc4 {[%emt 0:00:30]} Kd4 {[%emt 0:00:04]} 55. Bf7 {[%emt 0:00:30]} Kc5 {[%emt 0:00:08]} 56. Be8 {[%emt 0:02:30]} Kxc4 {[%emt 0:00:02]} 57. Bd7 {[%emt 0:00:30]} Kd4 {[%emt 0:00:04]} 58. Be8 {[%emt 0:00:00]} Kd5 {[%emt 0:00:39]} 1/2-1/2

[Event "24th Bosnjaci Open 2019"]
[Site "Bosnjaci"]
[Date "2019.01.07"]
[Round "7.23"]
[White "Mikic, Ivana"]
[Black "Bekcic, Martin"]
[Result "1-0"]
[ECO "B53"]
[WhiteElo "1739"]
[BlackElo "1898"]
[Annotator "NA RC"]
[PlyCount "155"]
[EventDate "2019.01.03"]
[EventType "swiss"]
[EventCountry "CRO"]
[SourceTitle "playchess.com"]
[Source "ChessBase"]
[SourceQuality "1"]
[TimeControl "5400+30"]

1. e4 {[%emt 0:00:30]} c5 {[%emt 0:00:30]} 2. Nf3 {[%emt 0:00:00]} d6 {[%emt 0:00:30]} 3. d4 {[%emt 0:00:00]} cxd4 {[%emt 0:00:00]} 4. Qxd4 {[%emt 0:00:30]} Nc6 {[%emt 0:00:00]} 5. Bb5 {[%emt 0:00:00] LiveBook: 2712 Games} Bd7 {[%emt 0:07:30]} 6. Bxc6 {[%emt 0:01:00]} Bxc6 {[%emt 0:01:30]} 7. c4 {[%emt 0:00:30]} Qc7 {[%emt 0:01:30] B53: Sicilian: 2...d6: Lines with Qxd4} (7... Nf6 8. Nc3 g6 9. O-O Bg7 10. Qd3 O-O 11. Nd4 Ng4 12. b3 Qb6 13. Nxc6 bxc6 14. Bb2 Qa5 15. h3 Ne5 16. Qe2 Rab8 17. f4 Nd7 18. Rf3 Nc5 19. Kh1 {1-0 (60) Kamsky,G (2744)-Gareyev,T (2658) Rockville 2012}) 8. Nc3 {[%emt 0:01:30]} e6 {[%emt 0:00:30]} 9. Be3 $146 {[%emt 0:00:30]} ({Predecessor:} 9. O-O Nf6 10. Re1 Be7 11. Nd5 Bxd5 12. cxd5 exd5 13. exd5 O-O 14. Bg5 Rfe8 15. Rac1 {½-½ (48) Rodriguez Perez,R (1982)-Garcia Castilla,M ICCF email 2016}) 9... Nf6 {[%emt 0:02:30]} 10. O-O {[%emt 0:01:30]} Be7 {[%emt 0:00:30]} 11. Rac1 {[%emt 0:02:30]} a6 {[%emt 0:03:30]} 12. b3 {[%emt 0:02:30]} O-O {[%emt 0:00:30]} 13. Qd3 {[%emt 0:01:30]} (13. Nd5 $5 {[%cal Rd5c7]} Qd8 14. Nxe7+ Qxe7 15. e5 $14) 13... b6 {[%emt 0:07:30]} 14. Nd4 {[%emt 0:02:30]} Bb7 {[%emt 0:04:30]} 15. f3 {[%emt 0:02:30]} Nd7 {[%emt 0:03:30]} 16. Rc2 {[%emt 0:03:30]} Ne5 {[%emt 0:03:30]} 17. Qd2 {[%emt 0:02:30]} Nc6 $2 {[%emt 0:04:30] [#]} (17... Nd7 $11 {and Black has nothing to worry.}) 18. Rb1 $2 {[%emt 0:09:30]} (18. Nd5 $1 $18 {[%cal Rd5c7][%mdl 512]} Qd8 (18... exd5 19. cxd5) 19. Nxc6 Bxc6 20. Bxb6) 18... Ne5 {[%emt 0:05:30]} 19. Qf2 {[%emt 0:04:30]} Nd7 {[%emt 0:01:30]} 20. Na4 {[%emt 0:10:30]} Nc5 {[%emt 0:01:30]} 21. Nb2 {[%emt 0:00:30]} Rab8 {[%emt 0:07:30]} (21... Nxe4 $5 22. fxe4 Bxe4 $14) 22. b4 {[%emt 0:03:30]} Nd7 {[%emt 0:02:30]} 23. Nb3 {[%emt 0:03:30]} Ba8 {[%emt 0:01:30]} 24. Rbc1 {[%emt 0:04:30]} Qd8 {[%emt 0:04:30]} 25. Nd3 {[%emt 0:04:30]} Rc8 {[%emt 0:05:30]} 26. c5 {[%emt 0:06:30]} dxc5 {[%emt 0:00:30]} 27. bxc5 {[%emt 0:01:30]} Nxc5 {[%emt 0:02:30]} 28. Ndxc5 {[%emt 0:00:30]} bxc5 {[%emt 0:00:30]} 29. Bxc5 {[%emt 0:00:30]} Bxc5 {[%emt 0:03:30]} 30. Nxc5 {[%emt 0:01:30]} Qa5 {[%emt 0:01:30]} 31. Qe2 {[%emt 0:01:30]} Rc6 {[%emt 0:04:30]} 32. Nb3 {[%emt 0:01:30]} Rxc2 {[%emt 0:02:17]} 33. Rxc2 {[%emt 0:00:30]} Qb6+ {[%emt 0:00:07]} 34. Qf2 {[%emt 0:01:30]} Qb4 {[%emt 0:01:14]} 35. Qd2 {[%emt 0:02:30]} Qb6+ {[%emt 0:01:17]} 36. Qd4 {[%emt 0:00:30]} Qb5 {[%emt 0:01:24]} 37. Kf2 {[%emt 0:00:30]} h6 {[%emt 0:00:32]} 38. Rc5 {[%emt 0:00:30]} Qb6 {[%emt 0:01:21]} 39. Ra5 {[%emt 0:00:30]} Qc7 {[%emt 0:01:48]} 40. Rxa6 {[%emt 0:04:30]} Qxh2 {[%emt 0:02:02]} 41. Rd6 {[%emt 0:01:30]} Qh4+ {[%emt 0:01:19]} 42. Kf1 {[%emt 0:00:30]} Bb7 {[%emt 0:02:31]} 43. Qf2 {[%emt 0:04:53]} Qh1+ {[%emt 0:00:55]} 44. Qg1 {[%emt 0:00:40]} Qh4 {[%emt 0:00:16]} 45. Qf2 {[%emt 0:01:43]} Qe7 {[%emt 0:00:50]} 46. Qd4 {[%emt 0:00:15]} Ra8 {[%emt 0:00:45]} (46... Bd5 $5 47. Ra6 Bxb3 48. axb3 Rd8 $17) 47. Rd7 {[%emt 0:03:13]} Ba6+ {[%emt 0:00:25]} 48. Kg1 {[%emt 0:00:17]} Qh4 {[%emt 0:00:29]} 49. Qf2 {[%emt 0:00:03]} (49. Qc5 $11) 49... Qxf2+ {[%emt 0:00:57]} 50. Kxf2 {[%emt 0:00:02]} Bc4 {[%emt 0:00:17]} 51. Rd2 {[%emt 0:00:08]} Rb8 {[%emt 0:01:46]} 52. Na5 {[%emt 0:00:47]} Ba6 {[%emt 0:00:33]} 53. Nc6 {[%emt 0:04:58]} Rb6 {[%emt 0:00:46]} 54. Ne5 {[%emt 0:00:58]} f6 {[%emt 0:01:38]} 55. Nd7 {[%emt 0:00:16]} Rb1 $11 {[%emt 0:00:29]} 56. Nc5 {[%emt 0:00:32]} Rf1+ {[%emt 0:01:00] [#]} ({Black should try} 56... Rb6 $14) 57. Kg3 $1 {[%emt 0:00:02]} Bc4 {[%emt 0:00:33]} 58. Rc2 {[%emt 0:00:17]} Bb5 {[%emt 0:00:35]} 59. Nxe6 {[%emt 0:00:17]} Ra1 {[%emt 0:00:54]} 60. Rc7 {[%emt 0:02:43]} Rxa2 {[%emt 0:01:02]} 61. Rxg7+ {[%emt 0:00:03]} Kh8 {[%emt 0:00:14]} 62. Rg6 {[%emt 0:01:05]} Kh7 {[%emt 0:00:15]} 63. Rxf6 {[%emt 0:00:27]} Bf1 {[%emt 0:00:08]} 64. Nf4 {[%emt 0:00:15]} Kg7 {[%emt 0:00:53]} 65. Rb6 {[%emt 0:00:46]} Ra5 {[%emt 0:00:25]} 66. Nd5 {[%emt 0:00:33]} Bc4 {[%emt 0:00:23]} 67. Ne3 {[%emt 0:00:02]} Bd3 {[%emt 0:00:58]} 68. Nf5+ {[%emt 0:00:02]} Kh7 {[%emt 0:00:45]} 69. Rxh6+ {[%emt 0:00:08]} Kg8 {[%emt 0:00:08]} 70. Kg4 {[%emt 0:00:18]} Ra2 {[%emt 0:00:11]} 71. g3 {[%emt 0:00:16]} Be2 {[%emt 0:00:05]} 72. Nd4 {[%emt 0:00:24]} Bd1 {[%emt 0:00:14]} 73. Ne6 {[%emt 0:00:32]} Ra3 {[%emt 0:00:11]} 74. Rf6 {[%emt 0:00:13]} Re3 {[%emt 0:00:40]} 75. Rf8+ {[%emt 0:03:08]} Kh7 {[%emt 0:00:19]} 76. Ng5+ {[%emt 0:00:04]} Kg7 {[%emt 0:00:16]} 77. Rd8 {[%emt 0:00:11]} Kg6 {[%emt 0:01:14]} 78. Rxd1 {[%emt 0:00:03]} 1-0

[Event "24th Bosnjaci Open 2019"]
[Site "Bosnjaci"]
[Date "2019.01.08"]
[Round "7.24"]
[White "Potlimbrzovic, Zdenko"]
[Black "Damjanovic, Stjepan"]
[Result "1-0"]
[ECO "D02"]
[WhiteElo "2094"]
[BlackElo "1741"]
[Annotator "NA"]
[PlyCount "75"]
[EventDate "2019.01.03"]
[EventType "swiss"]
[EventCountry "CRO"]
[TimeControl "5400+30"]

1. Nf3 {[%emt 0:00:30]} d5 {[%emt 0:00:30]} 2. d4 {[%emt 0:00:30]} Nf6 {[%emt 0:00:30]} 3. g3 {[%emt 0:00:30]} e6 {[%emt 0:00:00]} 4. Bg2 {[%emt 0:00:30]} b6 {[%emt 0:01:00]} 5. O-O {[%emt 0:00:00]} Nbd7 {[%emt 0:00:30]} 6. b3 {[%emt 0:00:00]} g6 {[%emt 0:00:30]} 7. Nbd2 {[%emt 0:02:30]} Bg7 {[%emt 0:00:00]} 8. Bb2 {[%emt 0:01:30]} O-O {[%emt 0:00:00]} 9. c4 {[%emt 0:00:30]} Bb7 {[%emt 0:00:30]} 10. Rc1 {[%emt 0:03:30]} c5 {[%emt 0:01:30]} 11. e3 {[%emt 0:07:30]} Rc8 {[%emt 0:02:30]} 12. Qc2 {[%emt 0:04:30]} Qc7 {[%emt 0:09:30]} 13. Qb1 {[%emt 0:04:30]} Qb8 {[%emt 0:03:30]} 14. Qa1 {[%emt 0:08:30]} Rfd8 {[%emt 0:10:30]} 15. dxc5 {[%emt 0:03:30]} Rxc5 {[%emt 0:00:30]} 16. b4 {[%emt 0:07:30]} Rcc8 {[%emt 0:00:30]} 17. c5 {[%emt 0:06:30]} bxc5 {[%emt 0:00:30]} 18. bxc5 {[%emt 0:00:00]} Bc6 {[%emt 0:00:30]} 19. Nb3 {[%emt 0:05:00]} Ne8 {[%emt 0:01:30]} 20. Bxg7 {[%emt 0:02:30]} Nxg7 {[%emt 0:02:30]} 21. Nfd4 {[%emt 0:05:30]} Ne5 {[%emt 0:03:30]} 22. f4 {[%emt 0:02:30]} Nc4 {[%emt 0:03:30]} 23. Qc3 {[%emt 0:06:30]} e5 {[%emt 0:10:30]} 24. Nxc6 {[%emt 0:01:30]} Rxc6 {[%emt 0:00:30]} 25. e4 {[%emt 0:00:30]} Nb6 {[%emt 0:01:30]} 26. Qxe5 {[%emt 0:00:30]} Qxe5 {[%emt 0:00:30]} 27. fxe5 {[%emt 0:00:30]} Nd7 {[%emt 0:02:30]} 28. exd5 {[%emt 0:00:00]} Ra6 {[%emt 0:00:30]} 29. Rfe1 {[%emt 0:02:00]} Rc8 {[%emt 0:01:30]} 30. Rc2 {[%emt 0:02:30]} Nb8 {[%emt 0:01:30]} 31. c6 {[%emt 0:00:30]} h5 {[%emt 0:02:30]} 32. c7 {[%emt 0:01:30]} Nd7 {[%emt 0:00:00]} 33. d6 {[%emt 0:02:30]} Rb6 {[%emt 0:00:00]} 34. Na5 {[%emt 0:01:56]} Kf8 {[%emt 0:02:30]} 35. Bb7 {[%emt 0:00:12]} Rxb7 {[%emt 0:00:00]} 36. Nxb7 {[%emt 0:00:07]} g5 {[%emt 0:00:00]} 37. Nd8 {[%emt 0:00:19]} Nf5 {[%emt 0:01:30]} 38. Rf2 {[%emt 0:00:36]} 1-0

[Event "24th Bosnjaci Open 2019"]
[Site "Bosnjaci"]
[Date "2019.01.08"]
[Round "8.7"]
[White "Beletic, Daniel"]
[Black "Ivekovic, Tihana"]
[Result "1-0"]
[ECO "A14"]
[WhiteElo "2371"]
[BlackElo "2071"]
[Annotator "RC"]
[PlyCount "37"]
[EventDate "2019.01.03"]
[EventType "swiss"]
[EventCountry "CRO"]
[SourceTitle "playchess.com"]
[Source "ChessBase"]
[SourceQuality "1"]
[TimeControl "5400+30"]

1. Nf3 {[%emt 0:01:30]} d5 {[%emt 0:00:30]} 2. c4 {[%emt 0:00:30]} e6 {[%emt 0:00:00]} 3. g3 {[%emt 0:00:30]} Nf6 {[%emt 0:00:00]} 4. Bg2 {[%emt 0:00:00]} Be7 {[%emt 0:00:30]} 5. O-O {[%emt 0:00:00]} O-O {[%emt 0:00:00]} 6. b3 {[%emt 0:00:30]} b6 {[%emt 0:02:00]} 7. Nc3 {[%emt 0:02:30]} Bb7 {[%emt 0:00:30]} 8. e3 {[%emt 0:00:00]} Nbd7 {[%emt 0:00:30]} 9. Qe2 {[%emt 0:03:00]} c5 {[%emt 0:02:30]} 10. Bb2 {[%emt 0:00:30]} Qc7 {[%emt 0:02:30]} 11. Nh4 {[%emt 0:02:30]} Rfe8 {[%emt 0:15:30]} 12. cxd5 {[%emt 0:05:30]} exd5 {[%emt 0:00:30]} 13. d4 {[%emt 0:00:30]} Ne4 {[%emt 0:08:30]} 14. Nf5 {[%emt 0:07:30]} Bf8 {[%emt 0:02:30]} 15. dxc5 {[%emt 0:07:30]} bxc5 {[%emt 0:00:00]} 16. Nxe4 {[%emt 0:05:30]} dxe4 {[%emt 0:00:00]} 17. Nh6+ {[%emt 0:00:30]} Kh8 {[%emt 0:00:30]} 18. Nxf7+ {[%emt 0:00:30]} Kg8 {[%emt 0:00:00]} 19. Nh6+ {[%emt 0:00:30]} 1-0